bitfinex-derivatives/quotes_ETHF0:USTF0_20250405
["timestamp","ask_amount","ask_price","bid_price","bid_amount"]
[1743828330309,9.31212,1812.4,1812.3,2.26321206]
[1743828331821,9.31212,1812.4,1812.3,2.96189366]
[1743828332022,9.31212,1812.4,1812.3,0.70419366]
[1743828332819,9.31212,1812.4,1812.3,0.00551206]
[1743828333124,9.41213243,1812.4,1812.3,0.00551206]
[1743828333815,11.91213243,1812.4,1812.3,0.00551206]
[1743828336419,11.91213243,1812.4,1812.3,2.06e-06]
[1743828336621,11.91214395,1812.4,1812.3,2.06e-06]
[1743828337326,11.91214171,1812.4,1812.3,2.06e-06]
[1743828340523,11.91214462,1812.4,1812.3,2.06e-06]
[1743828340827,9.41214462,1812.4,1812.3,2.06e-06]
[1743828343827,9.41314462,1812.4,1812.3,2.06e-06]
[1743828345318,9.31312,1812.4,1812.3,2.06e-06]
[1743828345522,9.41313474,1812.4,1812.3,2.06e-06]
[1743828347132,9.31312,1812.4,1812.3,2.06e-06]
[1743828347326,9.4131316,1812.4,1812.3,2.06e-06]
[1743828349834,9.31312,1812.4,1812.3,2.06e-06]
[1743828350134,4.31172,1812.4,1812.3,2.06e-06]
[1743828350336,7.79372,1812.4,1812.3,2.06e-06]
[1743828350533,3.482,1812.4,1812.3,3.60394206]
[1743828350732,4.58592,1812.4,1812.3,2.50000206]
[1743828351127,4.58592,1812.4,1812.3,3.97610206]
[1743828351523,3.482,1812.4,1812.3,5.08008206]
[1743828352634,7.79366,1812.5,1812.3,5.08006206]
[1743828352836,7.79366,1812.5,1812.4,0.7226]
[1743828353136,7.79366,1812.5,1812.4,2.9589]
[1743828357740,4.58586,1812.5,1812.4,2.9589]
[1743828358234,1.10385,1812.6,1812.4,6.56282]
[1743828358432,4.58585,1812.6,1812.5,1.3947]
[1743828361844,3.482,1812.6,1812.5,2.49856]
[1743828362033,3.482,1812.6,1812.5,1.3947]
[1743828362237,4.5858,1812.6,1812.5,1.3947]
[1743828363042,3.482,1812.6,1812.3,2.06e-06]
[1743828363238,4.31166,1812.5,1812.4,0.7132]
[1743828363646,3.2078,1812.5,1812.4,0.7132]
[1743828363844,3.2078,1812.5,1812.4,2.1714]
[1743828365148,4.31166,1812.5,1812.4,2.1714]
[1743828368952,1.10386,1812.5,1812.4,2.1714]
[1743828372754,4.31166,1812.5,1812.4,2.1714]
[1743828372950,7.25506,1812.5,1812.4,1.4582]
[1743828373253,1.10392,1812.4,1812.3,0.74260206]
[1743828373455,2.60822,1812.4,1812.3,0.74260206]
[1743828373653,2.60822,1812.4,1812.3,2.26970206]
[1743828374754,1.10392,1812.4,1812.3,2.96815455]
[1743828376349,1.10392,1812.4,1812.3,3.73370066]
[1743828376547,1.10392,1812.4,1812.3,2.96815455]
[1743828377155,1.10392,1812.4,1812.3,3.7338982]
[1743828380650,1.10392,1812.4,1812.3,3.73475555]
[1743828381858,1.10392,1812.4,1812.3,4.83873555]
[1743828382350,1.10392,1812.4,1812.3,4.07213455]
[1743828382556,1.10392,1812.4,1812.3,4.83881985]
[1743828383155,3.94551,1812.5,1812.3,4.83881985]
[1743828383362,3.94551,1812.5,1812.4,2.91303779]
[1743828384157,3.94551,1812.5,1812.4,4.01695779]
[1743828384453,3.94551,1812.5,1812.4,4.01700863]
[1743828387558,3.94551,1812.5,1812.4,2.91308863]
[1743828388955,3.94551,1812.5,1812.4,2.14635249]
[1743828390154,3.94551,1812.5,1812.4,2.91359091]
[1743828390555,3.94551,1812.5,1812.4,2.14635249]
[1743828390961,3.94551,1812.5,1812.4,4.01767395]
[1743828391663,3.94551,1812.5,1812.4,4.01762302]
[1743828393665,2.50641,1812.5,1812.4,4.01762302]
[1743828394263,2.50641,1812.5,1812.4,2.91370302]
[1743828395165,3.22001,1812.5,1812.4,2.91370302]
[1743828395466,3.22001,1812.5,1812.4,2.91357241]
[1743828397266,3.22001,1812.5,1812.4,2.9135198]
[1743828399168,3.22001,1812.5,1812.4,2.91358072]
[1743828399677,3.22001,1812.5,1812.4,2.14635249]
[1743828399878,3.22001,1812.5,1812.4,0.69845249]
[1743828408379,6.42781,1812.5,1812.4,0.69845249]
[1743828409986,6.42781,1812.5,1812.4,2.09675249]
[1743828420386,6.42781,1812.5,1812.4,2.86376977]
[1743828421788,6.42781,1812.5,1812.4,2.09675249]
[1743828422189,6.42781,1812.5,1812.4,2.86382562]
[1743828422790,6.42781,1812.5,1812.4,2.86381994]
[1743828424585,6.42781,1812.5,1812.4,2.09675249]
[1743828424791,6.42781,1812.5,1812.4,2.86385736]
[1743828426490,6.42781,1812.5,1812.4,2.86385113]
[1743828428486,6.42781,1812.5,1812.4,2.86380978]
[1743828429795,4.31171,1812.5,1812.4,2.86380978]
[1743828429995,4.31171,1812.5,1812.4,0.69845249]
[1743828430195,5.84731,1812.5,1812.4,0.69845249]
[1743828431984,5.84731,1812.5,1812.4,2.13555249]
[1743828432390,5.84731,1812.5,1812.4,2.90263661]
[1743828432696,5.84731,1812.5,1812.4,2.13555249]
[1743828432891,5.84731,1812.5,1812.4,2.902636]
[1743828434603,5.84731,1812.5,1812.4,2.13555249]
[1743828435401,5.84731,1812.5,1812.4,0.69845249]
[1743828438505,5.84731,1812.5,1812.4,2.85253991]
[1743828438700,5.84731,1812.5,1812.4,2.08535249]
[1743828441310,2.63951,1812.5,1812.4,2.08535249]
[1743828441606,2.63951,1812.5,1812.4,2.85225176]
[1743828441807,2.63951,1812.5,1812.4,2.08535249]
[1743828442211,2.63951,1812.5,1812.4,2.8522494]
[1743828444008,2.63951,1812.5,1812.4,3.5513494]
[1743828444313,2.63951,1812.5,1812.4,2.78445249]
[1743828444505,2.63951,1812.5,1812.4,2.78597691]
[1743828445914,2.63951,1812.5,1812.4,2.08687691]
[1743828446417,2.63951,1812.5,1812.4,0.69997691]
[1743828446817,1.10392,1812.4,1812.3,2.06e-06]
[1743828447006,4.07332,1812.4,1812.3,2.06e-06]
[1743828447210,4.07332,1812.4,1812.3,0.70001486]
[1743828447509,4.07332,1812.4,1812.3,2.23581486]
[1743828451124,4.07332,1812.4,1812.3,0.70001486]
[1743828452322,4.07332,1812.4,1812.3,2.06e-06]
[1743828457226,4.07332,1812.4,1812.3,1.43940206]
[1743828457227,4.58492,1812.4,1812.3,1.43940206]
[1743828457814,4.58492,1812.4,1812.3,2.13858004]
[1743828472835,3.2078,1812.7,1812.3,2.90487372]
[1743828473138,6.0957,1812.9,1812.5,1.10385]
[1743828473337,1.10377,1812.7,1812.6,2.1353]
[1743828473536,1.10377,1812.7,1812.6,2.83447798]
[1743828473739,1.10377,1812.7,1812.6,3.60030671]
[1743828473938,1.10377,1812.7,1812.6,2.83447798]
[1743828476438,4.31157,1812.7,1812.6,1.4073]
[1743828476842,1.10386,1812.5,1812.4,1.4927]
[1743828477037,1.10386,1812.5,1812.4,3.65497257]
[1743828477435,1.10386,1812.5,1812.4,4.75889257]
[1743828477635,1.10386,1812.5,1812.4,5.52419571]
[1743828477839,1.10386,1812.5,1812.4,5.52418829]
[1743828478146,1.10386,1812.5,1812.4,4.75889257]
[1743828478344,1.10386,1812.5,1812.4,5.52413067]
[1743828478843,2.8801,1812.6,1812.4,4.75889257]
[1743828479142,2.8801,1812.6,1812.5,1.5242]
[1743828479440,3.98396,1812.6,1812.5,2.22277257]
[1743828486644,3.98396,1812.6,1812.5,0.69857257]
[1743828504157,3.98396,1812.6,1812.5,1.46515711]
[1743828506057,3.98396,1812.6,1812.5,1.46529469]
[1743828506357,7.46396,1812.6,1812.5,1.46529469]
[1743828506556,7.46396,1812.6,1812.5,0.69857257]
[1743828507259,1.10392,1812.4,1812.3,2.06e-06]
[1743828507459,1.10392,1812.4,1812.3,0.76681062]
[1743828508061,3.37772,1812.4,1812.3,0.76681062]
[1743828508257,3.37772,1812.4,1812.3,1.46668059]
[1743828508454,3.37772,1812.4,1812.3,0.69987203]
[1743828511860,3.37772,1812.4,1812.3,2.06e-06]
[1743828513063,1.10392,1812.4,1812.3,0.74950206]
[1743828513464,1.10392,1812.4,1812.3,2.13650206]
[1743828513666,1.10392,1812.4,1812.3,2.83561747]
[1743828514164,1.10392,1812.4,1812.3,4.70549811]
[1743828514364,4.31171,1812.5,1812.3,4.70549811]
[1743828514565,4.31171,1812.5,1812.4,2.0997]
[1743828515162,4.31171,1812.5,1812.4,2.79881541]
[1743828517163,6.50381,1812.5,1812.4,2.79881541]
[1743828517865,6.50381,1812.5,1812.4,2.0997]
[1743828518468,3.29601,1812.5,1812.4,2.0997]
[1743828518666,6.50381,1812.5,1812.4,2.0997]
[1743828519363,6.50381,1812.5,1812.4,1.387]
[1743828522867,1.10392,1812.4,1812.3,2.06e-06]
[1743828523069,2.56932,1812.4,1812.3,2.06e-06]
[1743828525974,2.56932,1812.4,1812.3,1.41610206]
[1743828526478,1.10392,1812.4,1812.3,1.41610206]
[1743828526878,1.10392,1812.4,1812.3,2.11515985]
[1743828527780,1.10392,1812.4,1812.3,1.41610206]
[1743828527980,2.57512,1812.4,1812.3,1.41610206]
[1743828529881,2.57512,1812.4,1812.3,2.11534692]
[1743828530681,2.57512,1812.4,1812.3,1.41610206]
[1743828531383,2.57512,1812.4,1812.3,2.06e-06]
[1743828539186,5.78292,1812.4,1812.3,2.06e-06]
[1743828539389,5.88293415,1812.4,1812.3,2.06e-06]
[1743828542288,5.78292,1812.4,1812.3,2.06e-06]
[1743828542480,5.88287579,1812.4,1812.3,2.06e-06]
[1743828543392,8.38287579,1812.4,1812.3,2.06e-06]
[1743828543591,8.38282983,1812.4,1812.3,2.06e-06]
[1743828544289,5.88282983,1812.4,1812.3,2.06e-06]
[1743828545092,5.88282505,1812.4,1812.3,2.06e-06]
[1743828546594,5.78292,1812.4,1812.3,2.06e-06]
[1743828546891,5.88283449,1812.4,1812.3,2.06e-06]
[1743828549987,9.36283449,1812.4,1812.3,2.06e-06]
[1743828551596,5.88277411,1812.4,1812.3,2.06e-06]
[1743828551792,4.31172,1812.4,1812.3,2.06e-06]
[1743828552000,7.79272,1812.4,1812.3,2.06e-06]
[1743828552998,7.89256935,1812.4,1812.3,2.06e-06]
[1743828553400,9.31716779,1812.4,1812.3,2.06e-06]
[1743828554799,9.21732,1812.4,1812.3,2.06e-06]
[1743828555000,9.31716608,1812.4,1812.3,2.06e-06]
[1743828559902,9.31715782,1812.4,1812.3,2.06e-06]
[1743828561564,9.31715371,1812.4,1812.3,2.06e-06]
[1743828562230,9.31715461,1812.4,1812.3,2.06e-06]
[1743828563105,6.00952,1812.4,1812.3,2.06e-06]
[1743828563314,9.31714973,1812.4,1812.3,2.06e-06]
[1743828564710,9.21732,1812.4,1812.3,2.06e-06]
[1743828564909,9.317142,1812.4,1812.3,2.06e-06]
[1743828566316,9.21732,1812.4,1812.3,2.06e-06]
[1743828566513,9.31713877,1812.4,1812.3,2.06e-06]
[1743828568107,9.31713781,1812.4,1812.3,2.06e-06]
[1743828571318,9.31713494,1812.4,1812.3,2.06e-06]
[1743828573027,9.31714337,1812.4,1812.3,2.06e-06]
[1743828576130,9.21732,1812.4,1812.3,2.06e-06]
[1743828576321,9.31714446,1812.4,1812.3,2.06e-06]
[1743828578028,9.31714294,1812.4,1812.3,2.06e-06]
[1743828580433,6.10934294,1812.4,1812.3,2.06e-06]
[1743828580621,9.31714294,1812.4,1812.3,2.06e-06]
[1743828581030,9.21732,1812.4,1812.3,2.06e-06]
[1743828581233,9.31714535,1812.4,1812.3,2.06e-06]
[1743828582335,6.10934535,1812.4,1812.3,2.06e-06]
[1743828582830,9.31715075,1812.4,1812.3,2.06e-06]
[1743828584235,4.41155075,1812.4,1812.3,2.06e-06]
[1743828584429,7.89158306,1812.4,1812.3,0.70590206]
[1743828584631,7.79172,1812.4,1812.3,0.70590206]
[1743828585032,7.89157929,1812.4,1812.3,0.70590206]
[1743828585935,7.79172,1812.4,1812.3,0.70590206]
[1743828586129,7.89158276,1812.4,1812.3,0.70590206]
[1743828587037,7.79172,1812.4,1812.3,0.70590206]
[1743828587227,4.58392,1812.4,1812.3,0.70590206]
[1743828587741,7.79172,1812.4,1812.3,0.70590206]
[1743828593241,4.58392,1812.4,1812.3,0.70590206]
[1743828593448,7.79172,1812.4,1812.3,0.70590206]
[1743828594348,4.58392,1812.4,1812.3,0.70590206]
[1743828594545,7.79172,1812.4,1812.3,0.70590206]
[1743828595143,7.89158211,1812.4,1812.3,0.70590206]
[1743828595748,7.79172,1812.4,1812.3,0.70590206]
[1743828595939,7.89158215,1812.4,1812.3,0.70590206]
[1743828596337,7.79172,1812.4,1812.3,0.70590206]
[1743828596544,7.89158225,1812.4,1812.3,0.70590206]
[1743828597549,8.58808345,1812.4,1812.3,0.70590206]
[1743828598049,8.58808345,1812.4,1812.3,2.06e-06]
[1743828599149,8.58808065,1812.4,1812.3,2.06e-06]
[1743828601346,8.58807213,1812.4,1812.3,2.06e-06]
[1743828601545,9.98415213,1812.4,1811.4,4.31232]
[1743828601747,9.98415213,1812.4,1811.5,1.87205036]
[1743828601748,3.2078,1811.7,1811.5,1.87205036]
[1743828601945,3.2078,1811.7,1811.6,1.46736374]
[1743828602147,4.31215,1811.7,1811.6,1.46736374]
[1743828602341,4.31215,1811.7,1811.6,4.66778079]
[1743828603754,4.31215,1811.7,1811.6,4.66757401]
[1743828604956,4.31215,1811.7,1811.6,6.19387401]
[1743828605156,4.31215,1811.7,1811.6,6.1937816]
[1743828605653,4.31215,1811.7,1811.6,3.6937816]
[1743828606656,1.10435,1811.7,1811.6,3.6937816]
[1743828607757,1.10435,1811.7,1811.6,2.92661705]
[1743828611459,2.49905,1811.7,1811.6,2.92661705]
[1743828612257,2.49905,1811.7,1811.6,2.2262]
[1743828615156,2.49905,1811.7,1811.6,0.6999]
[1743828615358,3.25635,1811.7,1811.6,0.6999]
[1743828616057,1.10441,1811.6,1811.5,0.6966]
[1743828616256,6.55811,1811.6,1811.5,0.6966]
[1743828616755,1.10447,1811.5,1811.4,0.7594]
[1743828616947,6.07247,1811.5,1811.4,0.7594]
[1743828622858,1.10453,1811.4,1811.3,1.5165]
[1743828623056,6.57003,1811.4,1811.3,1.5165]
[1743828624265,1.10459,1811.3,1811.2,0.7185]
[1743828624562,2.62739,1811.3,1811.2,0.7185]
[1743828625560,2.62739,1811.3,1811.2,2.1293]
[1743828627152,2.62739,1811.3,1811.2,1.4108]
[1743828627556,1.10465,1811.2,1811.1,0.7325]
[1743828627857,9.99455,1811.2,1811.1,0.7325]
[1743828631368,9.99455,1811.2,1811.1,2.2079]
[1743828634268,6.78675,1811.2,1811.1,2.2079]
[1743828634469,9.99455,1811.2,1811.1,2.2079]
[1743828638171,1.10472,1811.1,1811.0,0.7265]
[1743828638474,1.10472,1811.1,1811.0,1.4292]
[1743828638667,1.10472,1811.1,1811.0,0.7027]
[1743828638862,2.64362,1811.1,1811.0,0.7027]
[1743828643478,5.85142,1811.1,1811.0,0.7027]
[1743828644577,1.10478,1811.0,1810.9,1.4932]
[1743828644775,3.25658,1811.0,1810.9,1.4932]
[1743828645080,1.10478,1811.0,1810.9,1.4932]
[1743828645283,1.10478,1811.0,1810.9,2.19284119]
[1743828648685,2.49248,1811.0,1810.9,2.19284119]
[1743828652881,2.49248,1811.0,1810.9,0.69964119]
[1743828653186,3.98048,1811.0,1810.9,0.69964119]
[1743828653477,3.98048,1811.0,1810.9,2.20864119]
[1743828656987,3.98048,1811.0,1810.9,0.69964119]
[1743828660293,3.98048,1811.0,1810.9,1.46746336]
[1743828661296,3.98048,1811.0,1810.9,1.46752015]
[1743828661689,3.98048,1811.0,1810.9,0.69964119]
[1743828662295,3.98048,1811.0,1810.9,1.4675321]
[1743828663591,1.10478,1811.0,1810.9,1.4675321]
[1743828663791,1.10478,1811.0,1810.9,2.8748321]
[1743828663992,2.61078,1811.0,1810.9,2.8748321]
[1743828665099,3.2078,1811.1,1810.9,3.9796721]
[1743828665291,7.79355,1811.1,1811.0,0.76794666]
[1743828665487,7.79355,1811.1,1811.0,2.97254666]
[1743828665700,7.79355,1811.1,1811.0,3.67218785]
[1743828668098,7.79355,1811.1,1811.0,3.67222765]
[1743828671098,3.2078,1811.1,1811.0,4.77700765]
[1743828671299,8.55182,1811.5,1811.0,6.71064887]
[1743828671602,1.10456,1811.4,1811.2,1.10462]
[1743828671802,1.10456,1811.4,1811.3,3.02468646]
[1743828671993,1.10456,1811.4,1811.3,3.72432765]
[1743828672402,1.10456,1811.4,1811.3,4.82891765]
[1743828673003,9.2067,1811.5,1811.3,4.82891765]
[1743828673212,9.2067,1811.5,1811.4,2.2292]
[1743828673414,9.2067,1811.5,1811.4,0.7033]
[1743828673614,9.2067,1811.5,1811.4,1.40294119]
[1743828674913,9.2067,1811.5,1811.4,0.7033]
[1743828676214,9.2067,1811.5,1811.4,1.40276784]
[1743828676817,5.9989,1811.5,1811.4,0.7033]
[1743828677417,5.9989,1811.5,1811.4,2.2119]
[1743828678816,5.9989,1811.5,1811.4,3.31643]
[1743828681217,4.6441,1811.7,1811.5,1.10447]
[1743828681417,4.59359811,1811.8,1811.5,2.1395]
[1743828681617,1.10438,1811.7,1811.5,2.1395]
[1743828681818,3.24598,1811.7,1811.6,0.69856841]
[1743828682219,3.24598,1811.7,1811.6,1.80297841]
[1743828683020,3.24598,1811.7,1811.6,3.32627841]
[1743828683219,2.1416,1811.7,1811.6,3.32627841]
[1743828683628,3.2078,1812.0,1811.6,8.20486841]
[1743828683816,2.2651,1812.5,1812.2,1.10401]
[1743828684113,4.7197,1812.4,1812.1,3.2078]
[1743828684310,3.2078,1812.2,1811.7,5.77036841]
[1743828684507,1.10418,1812.0,1811.7,7.3091]
[1743828684715,1.5119,1811.9,1811.7,6.2048]
[1743828684918,2.61618,1811.9,1811.7,3.97576811]
[1743828685118,0.7211,1811.8,1811.7,3.97576811]
[1743828685319,2.233,1811.8,1811.7,3.97576811]
[1743828685814,2.233,1811.8,1811.7,5.08011811]
[1743828686015,2.233,1811.8,1811.7,7.25971811]
[1743828688021,2.233,1811.8,1811.7,6.15536811]
[1743828688318,3.33729,1811.8,1811.7,3.21606811]
[1743828688517,6.83529,1811.8,1811.7,3.21606811]
[1743828689223,5.731,1811.8,1811.7,3.21606811]
[1743828691023,5.731,1811.8,1811.7,0.00826811]
[1743828691226,6.83529,1811.8,1811.7,0.00826811]
[1743828692727,5.731,1811.8,1811.7,0.00826811]
[1743828693628,6.83529,1811.8,1811.7,0.00826811]
[1743828702132,5.731,1811.8,1811.7,1.11261811]
[1743828702329,5.731,1811.8,1811.7,1.81201521]
[1743828705136,6.83529,1811.8,1811.7,1.81201521]
[1743828706235,5.731,1811.8,1811.7,1.81201521]
[1743828706530,6.83529,1811.8,1811.7,1.81201521]
[1743828706941,5.731,1811.8,1811.7,1.81201521]
[1743828707734,6.83529,1811.8,1811.7,0.70766521]
[1743828708734,6.83529,1811.8,1811.7,0.00826811]
[1743828710039,6.83529,1811.8,1811.3,2.76146]
[1743828710040,11.6996,1811.8,1811.2,3.2078]
[1743828710240,1.10453,1811.4,1811.3,0.76704639]
[1743828710441,4.59852,1811.5,1811.3,2.57175946]
[1743828710738,1.41,1811.4,1811.3,1.80471307]
[1743828710940,1.41,1811.4,1811.3,2.57176432]
[1743828710941,2.1774,1811.4,1811.3,2.57176432]
[1743828712241,2.1774,1811.4,1811.3,1.87163125]
[1743828712537,3.28193,1811.4,1811.2,6.44772]
[1743828712735,1.41,1811.3,1811.2,6.44772]
[1743828712935,1.41,1811.3,1811.2,7.21449405]
[1743828714237,1.41,1811.3,1811.2,4.00669405]
[1743828714436,1.41,1811.3,1811.2,7.21445786]
[1743828715038,1.41,1811.3,1811.2,5.78515786]
[1743828715240,2.173,1811.3,1811.2,5.78515786]
[1743828715439,2.173,1811.3,1811.2,5.01842]
[1743828715947,2.173,1811.3,1811.2,5.78504884]
[1743828716441,2.173,1811.3,1811.2,5.01842]
[1743828724244,3.27759,1811.3,1811.2,4.31242]
[1743828724436,2.173,1811.3,1811.2,4.31242]
[1743828724643,3.27759,1811.3,1811.2,3.2078]
[1743828725346,3.27759,1811.3,1811.2,4.31245]
[1743828725845,3.27759,1811.3,1811.2,1.10465]
[1743828726146,3.27759,1811.3,1811.2,4.31245]
[1743828728646,3.494,1811.5,1811.3,1.10459]
[1743828728951,6.11783,1811.5,1811.3,3.26929]
[1743828729144,1.10453,1811.4,1811.3,3.26929]
[1743828729551,5.0133,1811.5,1811.3,3.26929]
[1743828729850,1.10453,1811.4,1811.3,3.26929]
[1743828730048,2.62383,1811.4,1811.3,3.26929]
[1743828730951,1.5193,1811.4,1811.3,3.26929]
[1743828731151,3.488,1811.5,1811.4,1.10453]
[1743828731152,4.59247,1811.5,1811.4,1.10453]
[1743828731352,4.59247,1811.5,1811.4,3.32103]
[1743828731549,6.01127,1811.5,1811.4,2.2165]
[1743828731753,2.52327,1811.5,1811.4,2.2165]
[1743828732156,1.4188,1811.5,1811.4,3.32103]
[1743828732459,2.52327,1811.5,1811.4,2.2165]
[1743828732648,2.52327,1811.5,1811.4,1.4576]
[1743828732954,2.52327,1811.5,1811.4,2.56213]
[1743828733756,2.52327,1811.5,1811.3,1.81164]
[1743828734055,2.1219,1811.4,1811.3,1.81164]
[1743828734355,3.22643,1811.4,1811.3,1.81164]
[1743828734852,1.10459,1811.3,1811.2,4.31243]
[1743828735154,2.0904,1811.3,1811.2,5.07887532]
[1743828735354,2.0904,1811.3,1811.2,4.31243]
[1743828737358,2.0904,1811.3,1811.2,5.07949045]
[1743828737655,2.0904,1811.3,1811.2,6.57289045]
[1743828737953,2.0904,1811.3,1811.2,6.57288532]
[1743828738554,3.19499,1811.3,1811.2,6.57288532]
[1743828739655,3.19499,1811.3,1811.2,3.36508532]
[1743828739857,3.19499,1811.3,1811.2,6.57288532]
[1743828740357,2.0904,1811.3,1811.2,6.57288532]
[1743828741750,2.0904,1811.3,1811.2,6.57360258]
[1743828741953,3.19499,1811.3,1811.2,5.46897258]
[1743828742150,3.19499,1811.3,1811.2,3.97557258]
[1743828742355,3.19499,1811.3,1811.2,3.2078]
[1743828743056,6.68899,1811.3,1811.2,3.2078]
[1743828743556,6.68899,1811.3,1811.1,1.10469]
[1743828743758,2.1715,1811.2,1811.1,1.10469]
[1743828743949,2.1715,1811.2,1811.1,5.08028488]
[1743828745562,2.1715,1811.2,1811.1,1.87248488]
[1743828745760,2.1715,1811.2,1811.1,5.08028488]
[1743828746161,1.10458,1811.4,1811.3,1.10459]
[1743828746364,1.10458,1811.4,1811.2,2.1402]
[1743828746660,1.10458,1811.4,1811.2,3.24481]
[1743828746960,2.51978,1811.4,1811.2,3.24481]
[1743828747457,1.10459,1811.3,1811.2,3.24481]
[1743828747661,1.4152,1811.3,1811.2,4.01257043]
[1743828747959,2.51979,1811.3,1811.2,4.01257043]
[1743828748158,1.4152,1811.3,1811.2,4.01257043]
[1743828748661,2.51979,1811.3,1811.2,0.76776043]
[1743828748861,3.27869,1811.3,1811.2,0.76776043]
[1743828749263,3.27869,1811.3,1811.2,0.76778521]
[1743828750563,3.27869,1811.3,1811.2,0.76776689]
[1743828750754,3.27869,1811.3,1811.2,1.87241689]
[1743828750960,3.27869,1811.3,1811.2,1.87240982]
[1743828752960,3.27869,1811.3,1811.2,1.87239239]
[1743828754759,3.27869,1811.3,1811.2,0.76774239]
[1743828754961,1.10465,1811.2,1811.1,4.6349]
[1743828755160,1.5075,1811.2,1811.1,6.50737433]
[1743828755463,2.61215,1811.2,1811.1,6.50737433]
[1743828755764,1.5075,1811.2,1811.1,6.50737433]
[1743828756061,2.61215,1811.2,1811.1,6.50737433]
[1743828757658,1.5075,1811.2,1811.1,6.50737433]
[1743828758468,1.5075,1811.2,1811.1,6.50729575]
[1743828760270,1.5075,1811.2,1811.1,6.50726775]
[1743828760970,1.5075,1811.2,1811.1,3.29946775]
[1743828761170,1.5075,1811.2,1811.1,6.50726775]
[1743828762371,1.5075,1811.2,1811.1,6.50733139]
[1743828762568,2.61215,1811.2,1811.1,6.50733139]
[1743828764068,2.61215,1811.2,1811.1,6.50756656]
[1743828764377,2.61215,1811.2,1811.1,3.29976656]
[1743828764568,2.61215,1811.2,1811.1,6.50756656]
[1743828765972,2.61215,1811.2,1811.1,6.50771843]
[1743828768088,1.5075,1811.2,1811.1,6.50771843]
[1743828768789,1.5075,1811.2,1811.1,3.29991843]
[1743828769682,1.5075,1811.2,1811.1,3.29994408]
[1743828771476,2.61215,1811.2,1811.1,3.29994408]
[1743828771679,2.61215,1811.2,1811.1,3.29996042]
[1743828773486,2.61215,1811.2,1811.1,3.29995947]
[1743828775087,2.61215,1811.2,1811.1,6.50775947]
[1743828775288,2.61215,1811.2,1811.1,6.50773711]
[1743828776184,2.61215,1811.2,1811.1,3.97591711]
[1743828776887,2.61215,1811.2,1811.1,3.2078]
[1743828777393,2.61215,1811.2,1811.1,3.97598175]
[1743828777887,2.61215,1811.2,1811.1,3.2078]
[1743828778087,2.61215,1811.2,1811.1,3.9759488]
[1743828778290,2.61215,1811.2,1811.1,3.2078]
[1743828780295,6.10315,1811.2,1811.1,3.2078]
[1743828783292,2.61215,1811.2,1811.1,3.2078]
[1743828783497,2.61215,1811.2,1811.1,5.0803569]
[1743828783699,2.61215,1811.2,1811.1,5.4346369]
[1743828783898,2.61215,1811.2,1811.1,5.4346263]
[1743828784994,2.61215,1811.2,1811.1,4.6668]
[1743828785188,2.61215,1811.2,1811.1,5.43466068]
[1743828785393,2.61215,1811.2,1811.1,4.6668]
[1743828786503,2.61215,1811.2,1811.1,1.459]
[1743828789506,2.61215,1811.2,1811.1,2.22682738]
[1743828790406,2.61215,1811.2,1811.1,3.33154738]
[1743828791409,2.61215,1811.2,1811.1,3.33154881]
[1743828792109,1.10464,1811.3,1811.1,4.09454881]
[1743828792308,2.9515,1811.4,1811.2,1.4751]
[1743828793209,1.10459,1811.3,1811.2,1.4751]
[1743828793406,2.49659,1811.3,1811.2,1.4751]
[1743828798314,1.392,1811.3,1811.2,2.57975]
[1743828798613,2.49659,1811.3,1811.2,3.34757711]
[1743828798814,1.10458,1811.4,1811.2,3.34757592]
[1743828799113,2.58898,1811.4,1811.3,1.4735]
[1743828799313,2.58898,1811.4,1811.3,2.2357]
[1743828799513,2.58898,1811.4,1811.3,4.1079989]
[1743828799714,2.58898,1811.4,1811.3,3.34029]
[1743828799913,3.29358,1811.4,1811.3,3.34029]
[1743828800117,1.10459,1811.3,1811.2,1.10461]
[1743828800315,2.58899,1811.3,1811.2,1.87232846]
[1743828800616,2.58899,1811.3,1811.2,0.76771846]
[1743828801007,2.58899,1811.3,1811.2,1.87236846]
[1743828801213,3.29299,1811.3,1811.2,1.87236846]
[1743828801512,1.10465,1811.2,1811.1,4.3125]
[1743828801809,2.2199,1811.2,1811.1,5.08018351]
[1743828802116,1.10463,1811.3,1811.1,5.08015351]
[1743828802317,1.10463,1811.3,1811.2,0.76768351]
[1743828802613,2.59303,1811.3,1811.2,0.76762819]
[1743828802814,1.4884,1811.3,1811.2,1.87227819]
[1743828803015,1.4884,1811.3,1811.2,4.08457819]
[1743828803217,2.59299,1811.3,1811.2,4.08457819]
[1743828804504,2.59299,1811.3,1811.2,4.08454902]
[1743828806317,2.59299,1811.3,1811.2,4.08452599]
[1743828807319,2.59299,1811.3,1811.2,2.97987599]
[1743828808615,2.59299,1811.3,1811.2,4.08452599]
[1743828808816,1.4884,1811.3,1811.2,4.08452599]
[1743828809820,2.59299,1811.3,1811.2,4.08452599]
[1743828810020,1.4884,1811.3,1811.2,4.08452599]
[1743828810721,1.4884,1811.3,1811.2,2.97987599]
[1743828810722,2.59299,1811.3,1811.2,2.97987599]
[1743828810915,1.10465,1811.2,1811.1,3.2078]
[1743828811116,3.26215,1811.2,1811.1,3.97539672]
[1743828811317,2.1575,1811.2,1811.1,5.08011672]
[1743828811523,1.4528,1811.2,1811.1,5.08011672]
[1743828812119,1.4528,1811.2,1811.1,6.58721672]
[1743828813411,1.4528,1811.2,1811.1,6.58734724]
[1743828815525,1.4528,1811.2,1811.1,6.58739131]
[1743828816525,2.51328,1811.4,1811.2,1.10461]
[1743828816727,1.4303,1811.3,1811.2,3.40441]
[1743828816925,1.4303,1811.3,1811.2,4.1722088]
[1743828817328,2.53489,1811.3,1811.2,4.17221534]
[1743828818531,2.53489,1811.3,1811.2,3.06760534]
[1743828818924,2.53489,1811.3,1811.2,4.17225534]
[1743828819321,2.53489,1811.3,1811.2,4.17236698]
[1743828821133,2.53489,1811.3,1811.2,4.17249268]
[1743828821431,1.4303,1811.3,1811.2,4.17249268]
[1743828822933,2.53489,1811.3,1811.2,4.17249268]
[1743828823544,1.4303,1811.3,1811.2,4.17249268]
[1743828824840,1.4303,1811.3,1811.2,4.17256544]
[1743828826543,1.4303,1811.3,1811.2,3.40445]